bitfinex/quotes_SOLUSD_20250406
["timestamp","ask_amount","ask_price","bid_price","bid_amount"]
[1743982376171,71.37472868,104.74,104.69,12.3542]
[1743982376361,71.37472868,104.74,104.7,0.14216157]
[1743982376563,0.03,104.75,104.7,71.51689025]
[1743982376861,71.40472868,104.75,104.7,71.51689025]
[1743982377183,71.37472868,104.74,104.69,12.3542]
[1743982377384,71.37472868,104.72,104.69,12.3542]
[1743982377586,71.37472868,104.73,104.69,12.3542]
[1743982377760,0.03,104.75,104.69,83.72892868]
[1743982377961,71.37472868,104.74,104.69,83.72892868]
[1743982378657,71.37472868,104.74,104.7,0.14216157]
[1743982378895,0.03,104.75,104.7,0.14216157]
[1743982378896,71.40472868,104.75,104.7,0.14216157]
[1743982379298,71.37472868,104.74,104.69,83.72892868]
[1743982379588,9.5766,104.75,104.69,83.72892868]
[1743982379887,71.40472868,104.75,104.69,83.72892868]
[1743982380107,80.95142868,104.75,104.69,83.72892868]
[1743982380263,0.03,104.75,104.7,71.51689025]
[1743982380957,0.03,104.75,104.7,0.14216157]
[1743982381257,71.37472868,104.74,104.69,83.72892868]
[1743982381482,71.37472868,104.73,104.69,12.3542]
[1743982381785,71.37472868,104.74,104.7,0.14216157]
[1743982382078,0.03,104.75,104.7,71.51689025]
[1743982382281,71.40472868,104.75,104.7,0.14216157]
[1743982382489,71.37472868,104.74,104.7,0.14216157]
[1743982382778,71.37472868,104.72,104.69,12.3542]
[1743982382963,71.37472868,104.74,104.69,12.3542]
[1743982383274,0.03,104.75,104.73,0.14216157]
[1743982383475,0.03,104.75,104.7,18.64964886]
[1743982383679,71.40472868,104.75,104.71,0.14216157]
[1743982384566,0.03,104.75,104.7,71.37472868]
[1743982384871,0.03,104.75,104.71,71.51689025]
[1743982385080,71.40472868,104.75,104.71,18.79181043]
[1743982385263,71.40472868,104.75,104.7,71.37472868]
[1743982385465,71.37472868,104.74,104.7,0.14216157]
[1743982385668,71.40472868,104.75,104.7,90.16653911]
[1743982386372,71.37472868,104.74,104.69,83.72892868]
[1743982386570,71.37472868,104.71,104.67,8.1393]
[1743982386963,9.5479,104.74,104.68,0.14216157]
[1743982387174,0.03,104.75,104.73,71.37472868]
[1743982387357,0.03,104.75,104.74,0.14216157]
[1743982387564,0.03,104.76,104.75,0.14216157]
[1743982387777,0.03,104.76,104.75,18.79181043]
[1743982388086,0.03,104.77,104.74,79.50562868]
[1743982388384,0.03,104.77,104.75,0.14216157]
[1743982388561,0.03,104.77,104.75,71.51689025]
[1743982389359,0.03,104.77,104.75,0.14216157]
[1743982389558,0.03,104.77,104.73,71.37472868]
[1743982389770,0.03,104.77,104.73,0.14216157]
[1743982390181,0.03,104.77,104.73,71.51689025]
[1743982390986,0.03,104.77,104.73,0.14216157]
[1743982391286,71.37472868,104.74,104.69,12.3083]
[1743982391473,71.37472868,104.73,104.69,12.3083]
[1743982391659,71.37472868,104.7,104.67,0.14216157]
[1743982391864,71.37472868,104.7,104.65,83.68302868]
[1743982392390,18.933972,104.74,104.66,369.53472868]
[1743982392391,71.37472868,104.71,104.66,369.53472868]
[1743982392591,80.92482868,104.71,104.66,369.53472868]
[1743982392982,71.37472868,104.7,104.66,298.16]
[1743982393693,71.37472868,104.69,104.66,298.16]
[1743982393892,71.37472868,104.69,104.65,12.45046157]
[1743982394089,9.5505,104.71,104.65,83.82519025]
[1743982394297,71.37472868,104.7,104.65,83.82519025]
[1743982394793,31.144872,104.74,104.67,71.37472868]
[1743982394990,31.144872,104.74,104.66,18.79181043]
[1743982394991,71.37472868,104.72,104.66,0.14216157]
[1743982395191,71.37472868,104.71,104.66,0.14216157]
[1743982395377,9.5478,104.74,104.67,71.37472868]
[1743982395581,71.37472868,104.74,104.69,71.37472868]
[1743982396296,71.37472868,104.75,104.7,71.37472868]
[1743982396791,71.37472868,104.74,104.69,71.51689025]
[1743982397097,71.37472868,104.72,104.68,71.37472868]
[1743982397271,71.37472868,104.71,104.69,26.0]
[1743982397888,80.92502868,104.71,104.66,85.03472868]
[1743982398217,71.37472868,104.69,104.65,12.3083]
[1743982398393,71.37472868,104.67,104.63,8.47226157]
[1743982398573,71.37472868,104.69,104.64,71.51689025]
[1743982398898,71.37472868,104.7,104.65,71.37472868]
[1743982399077,9.5503,104.71,104.65,71.37472868]
[1743982399598,71.37472868,104.71,104.65,71.37472868]
[1743982399892,80.92492868,104.71,104.65,71.37472868]
[1743982400077,71.37472868,104.68,104.64,0.14216157]
[1743982400591,71.37472868,104.69,104.64,71.51689025]
[1743982400998,71.37472868,104.7,104.65,71.37472868]
[1743982401368,9.5493,104.72,104.65,71.37472868]
[1743982401573,71.37472868,104.71,104.66,97.37472868]
[1743982402003,80.92492868,104.71,104.66,97.37472868]
[1743982402186,71.37472868,104.69,104.64,90.45086225]
[1743982402391,71.37472868,104.68,104.63,8.3301]
[1743982402605,71.37472868,104.67,104.63,8.3301]
[1743982402794,71.37472868,104.67,104.62,84.40092868]
[1743982402995,18.64964886,104.7,104.63,71.51689025]
[1743982403203,9.83452314,104.71,104.65,97.37472868]
[1743982403379,71.37472868,104.69,104.65,26.0]
[1743982403584,71.37472868,104.67,104.65,26.0]
[1743982403785,9.5512,104.7,104.65,26.0]
[1743982403981,71.37472868,104.7,104.65,97.37472868]
[1743982404713,71.37472868,104.71,104.66,71.37472868]
[1743982405009,71.37472868,104.7,104.65,111.15689025]
[1743982405191,71.37472868,104.71,104.65,111.15689025]
[1743982405386,71.37472868,104.71,104.66,0.14216157]
[1743982405719,71.37472868,104.7,104.65,39.64]
[1743982405888,80.92582868,104.7,104.65,111.01472868]
[1743982406089,9.5506,104.71,104.65,111.01472868]
[1743982406328,9.5506,104.71,104.66,71.37472868]
[1743982406329,71.37472868,104.71,104.66,71.37472868]
[1743982406816,71.37472868,104.7,104.65,111.01472868]
[1743982407109,71.37472868,104.68,104.62,13.0262]
[1743982407310,47.52986734,104.67,104.63,0.14216157]
[1743982407691,47.52986734,104.66,104.62,13.0262]
[1743982408009,47.52986734,104.64,104.6,298.1]
[1743982408412,47.52986734,104.63,104.59,26.77466157]
[1743982408592,47.52986734,104.62,104.59,12.9925]
[1743982408788,47.52986734,104.63,104.59,12.9925]
[1743982408991,18.933972,104.68,104.61,47.52986734]
[1743982409200,47.52986734,104.64,104.59,60.52236734]
[1743982409410,71.33836387,104.65,104.6,71.48052544]
[1743982409691,71.33836387,104.68,104.63,71.33836387]
[1743982409899,71.33836387,104.69,104.64,71.33836387]
[1743982410288,71.33836387,104.7,104.65,71.33836387]
[1743982410491,13.64,104.71,104.66,71.33836387]
[1743982410492,71.33836387,104.71,104.66,71.33836387]
[1743982410724,71.33836387,104.72,104.67,97.33836387]
[1743982410931,71.33836387,104.73,104.68,71.33836387]
[1743982411093,9.5469,104.75,104.69,97.48052544]
[1743982411288,9.5469,104.75,104.69,0.14216157]
[1743982411289,71.33836387,104.73,104.69,0.14216157]
[1743982411485,71.33836387,104.73,104.69,26.0]
[1743982411710,71.33836387,104.72,104.67,0.14216157]
[1743982411907,9.546,104.76,104.69,97.33836387]
[1743982412121,71.33836387,104.74,104.69,26.0]
[1743982412526,71.33836387,104.74,104.69,97.33836387]
[1743982413006,80.88576387,104.74,104.69,26.0]
[1743982413402,71.33836387,104.74,104.69,0.14216157]
[1743982413630,71.33836387,104.75,104.7,71.33836387]
[1743982413926,71.33836387,104.76,104.7,71.33836387]
[1743982414223,71.36836387,104.77,104.72,97.48052544]
[1743982415018,71.36836387,104.77,104.72,26.14216157]
[1743982415197,80.91306387,104.77,104.72,26.14216157]
[1743982415402,80.91306387,104.77,104.72,97.48052544]
[1743982415594,71.36836387,104.77,104.72,97.48052544]
[1743982415800,71.33836387,104.76,104.72,26.0]
[1743982417124,80.88416387,104.76,104.72,26.0]
[1743982417303,71.33836387,104.76,104.72,26.0]
[1743982417503,71.33836387,104.75,104.7,71.33836387]
[1743982417700,71.33836387,104.73,104.68,21.7769]
[1743982417922,71.33836387,104.73,104.68,93.11526387]
[1743982418123,71.33836387,104.74,104.69,71.33836387]
[1743982418314,71.33836387,104.75,104.7,71.33836387]
[1743982418513,71.33836387,104.75,104.69,0.14216157]
[1743982418514,71.33836387,104.75,104.69,71.48052544]
[1743982418715,28.479572,104.76,104.7,71.33836387]
[1743982418909,71.33836387,104.75,104.7,71.33836387]
[1743982419317,71.33836387,104.75,104.69,0.14216157]
[1743982419512,71.33836387,104.75,104.7,71.33836387]
[1743982419718,71.33836387,104.74,104.69,71.48052544]
[1743982419911,71.33836387,104.74,104.69,71.33836387]
[1743982420326,71.33836387,104.73,104.68,79.47526387]
[1743982420517,71.33836387,104.74,104.68,79.47526387]
[1743982420716,32.553972,104.76,104.7,71.48052544]
[1743982420717,71.33836387,104.75,104.7,71.48052544]
[1743982420930,71.33836387,104.75,104.7,71.33836387]
[1743982421133,71.33836387,104.74,104.69,71.48052544]
[1743982421435,80.88496387,104.75,104.7,71.33836387]
[1743982422214,9.5466,104.75,104.7,71.33836387]
[1743982422414,71.33836387,104.76,104.71,71.33836387]
[1743982422615,71.33836387,104.75,104.69,0.42648471]
[1743982422823,71.33836387,104.75,104.7,71.33836387]
[1743982423828,71.33836387,104.76,104.71,71.33836387]
[1743982424327,71.33836387,104.76,104.72,26.0]
[1743982424706,80.91336387,104.77,104.72,97.33836387]
[1743982424910,71.33836387,104.76,104.72,26.0]
[1743982425107,71.33836387,104.73,104.68,8.1369]
[1743982425323,71.33836387,104.73,104.68,79.47526387]
[1743982425712,90.27233587,104.74,104.69,71.33836387]
[1743982426022,33.4367,104.77,104.7,71.33836387]
[1743982426220,80.88606387,104.74,104.69,71.33836387]
[1743982426415,71.33836387,104.73,104.68,8.1369]
[1743982426819,71.33836387,104.73,104.68,79.47526387]
[1743982427024,71.33836387,104.74,104.69,71.33836387]
[1743982427218,80.88526387,104.75,104.69,71.33836387]
[1743982427432,71.33836387,104.75,104.7,71.33836387]
[1743982427633,9.68816157,104.76,104.69,71.48052544]
[1743982427634,71.33836387,104.74,104.69,71.48052544]
[1743982428026,71.33836387,104.73,104.68,79.47526387]
[1743982428241,80.88696387,104.73,104.68,79.47526387]
[1743982428427,71.33836387,104.72,104.67,71.33836387]
[1743982429425,9.5486,104.73,104.68,71.33836387]
[1743982429750,80.88656387,104.74,104.69,71.33836387]
[1743982429930,9.5482,104.74,104.69,71.33836387]
[1743982430131,71.33836387,104.74,104.69,71.33836387]
[1743982430343,71.33836387,104.74,104.69,97.33836387]
[1743982431244,47.46981186,104.74,104.69,73.46981186]
[1743982431436,47.46981186,104.76,104.7,47.46981186]
[1743982431624,9.5748,104.77,104.72,47.46981186]
[1743982431824,57.04461186,104.77,104.72,47.46981186]
[1743982432127,0.03,104.77,104.73,73.46981186]
[1743982432323,0.03,104.77,104.74,47.46981186]
[1743982432532,0.03,104.77,104.73,60.00801186]
[1743982433938,0.03,104.77,104.74,26.0]
[1743982434451,0.03,104.77,104.74,73.46981186]
[1743982434750,0.03,104.77,104.73,60.15017343]
[1743982435127,0.03,104.77,104.74,47.46981186]
[1743982436824,0.03,104.77,104.73,60.15017343]
[1743982437553,0.03,104.77,104.73,60.00801186]
[1743982439242,0.03,104.77,104.74,47.46981186]
[1743982440025,0.03,104.77,104.75,47.46981186]
[1743982440457,0.03,104.77,104.73,12.5382]
[1743982440649,0.03,104.77,104.73,60.00801186]
[1743982440850,0.03,104.77,104.74,47.46981186]
[1743982441053,0.03,104.77,104.75,47.46981186]
[1743982441681,0.03,104.77,104.76,47.61197343]
[1743982442441,0.03,104.77,104.76,127.59575729]
[1743982442650,0.03,104.8,104.78,0.14216157]
[1743982442836,0.03,104.8,104.79,47.61197343]
[1743982443759,0.03,104.8,104.79,66.54594543]
[1743982444065,0.03,104.8,104.79,79.68044543]
[1743982445135,0.03,104.8,104.79,13.27666157]
[1743982445342,0.03,104.8,104.79,60.74647343]
[1743982445546,0.03,104.8,104.79,79.68044543]
[1743982446254,0.87277258,104.83,104.82,26.64216157]
[1743982446465,0.76708257,104.88,104.83,27.51103357]
[1743982446670,0.75918025,104.89,104.88,26.0]
[1743982446851,0.75918025,104.89,104.88,92.54594543]
[1743982447063,0.9202907,104.92,104.89,18.933972]
[1743982447275,0.9202907,104.92,104.89,66.40378386]
[1743982447474,1.89774185,104.93,104.9,0.14216157]
[1743982447475,1.47117355,104.93,104.9,0.14216157]
[1743982447766,1.47117355,104.93,104.92,47.61197343]
[1743982447948,1.47117355,104.93,104.92,80.12594543]
[1743982448143,1.47117355,104.93,104.92,13.58]
[1743982448350,1.47117355,104.93,104.92,61.19197343]
[1743982448555,0.88269807,104.94,104.92,80.12594543]
[1743982448755,0.88269807,104.94,104.93,66.54594543]
[1743982448954,0.88269807,104.94,104.93,47.61197343]
[1743982449355,0.88269807,104.94,104.93,47.46981186]
[1743982449558,0.88269807,104.94,104.91,0.14216157]
[1743982449769,0.88269807,104.94,104.92,47.46981186]
[1743982449969,0.88269807,104.94,104.93,47.61197343]
[1743982450342,0.88269807,104.94,104.9,297.9]
[1743982450547,0.88269807,104.94,104.91,47.46981186]
[1743982450789,0.88269807,104.94,104.92,47.46981186]
[1743982451179,0.88269807,104.94,104.91,47.46981186]
[1743982451773,0.88269807,104.94,104.9,345.36981186]
[1743982452169,0.88269807,104.94,104.91,47.46981186]
[1743982453281,0.88269807,104.94,104.92,47.46981186]
[1743982453579,0.88269807,104.94,104.91,47.46981186]
[1743982453953,0.88269807,104.94,104.93,0.14216157]
[1743982454168,0.88269807,104.94,104.93,47.61197343]
[1743982454367,0.8426838,104.99,104.97,0.14216157]
[1743982454585,0.03,105.01,104.99,0.14216157]
[1743982454763,0.03,105.01,104.99,47.89629657]
[1743982455077,0.03,105.01,104.99,66.54594543]
[1743982455460,0.03,105.01,104.99,47.46981186]
[1743982455673,0.03,105.01,104.98,345.14981186]
[1743982455972,0.03,105.01,104.99,66.54594543]
[1743982456167,0.34481656,105.03,104.99,66.54594543]
[1743982456168,0.34481656,105.03,105.01,26.0]
[1743982456369,0.39850537,105.13,105.06,19.07613357]
[1743982456573,57.38061723,105.13,105.08,47.46981186]
[1743982456882,0.39850537,105.13,105.09,47.46981186]
[1743982457083,0.39850537,105.13,105.1,47.46981186]
[1743982457462,0.39850537,105.13,105.07,13.54]
[1743982457682,0.39850537,105.13,105.1,73.46981186]
[1743982457879,0.39850537,105.13,105.11,26.0]
[1743982458074,0.39850537,105.13,105.12,47.46981186]
[1743982459392,0.39850537,105.13,105.1,70.62875933]
[1743982459686,0.39850537,105.13,105.08,13.54]
[1743982459687,0.39850537,105.13,105.09,70.62875933]
[1743982459868,0.39850537,105.13,105.11,70.62875933]
[1743982460289,0.39850537,105.13,105.09,70.62875933]
[1743982460586,0.39850537,105.13,105.1,70.62875933]
[1743982460767,0.39850537,105.13,105.09,70.62875933]
[1743982461177,70.62875933,105.11,105.06,297.54]
[1743982461394,70.62875933,105.11,105.06,368.16875933]
[1743982461801,70.62875933,105.12,105.07,70.62875933]
[1743982462111,71.0272647,105.13,105.08,70.62875933]
[1743982462270,70.62875933,105.12,105.06,297.54]
[1743982462588,9.91050537,105.13,105.09,70.62875933]
[1743982462885,9.91050537,105.13,105.08,70.62875933]
[1743982462886,80.5397647,105.13,105.08,70.62875933]
[1743982463088,70.62875933,105.12,105.07,70.62875933]
[1743982463296,9.91100537,105.13,105.06,368.16875933]
[1743982463297,70.62875933,105.11,105.06,368.16875933]
[1743982463790,70.62875933,105.1,105.06,297.54]
[1743982463971,70.62875933,105.07,105.02,70.62875933]
[1743982464171,70.62875933,105.06,104.99,20.36884234]
[1743982464372,70.62875933,105.06,105.0,70.62875933]
[1743982464579,9.5192,105.05,104.99,0.14216157]
[1743982464776,80.14745933,105.06,105.01,70.62875933]
[1743982464989,80.14655933,105.07,105.02,70.62875933]
[1743982465195,9.5168,105.08,105.02,70.62875933]
[1743982465384,80.14555933,105.08,105.03,70.62875933]
[1743982465693,70.62875933,105.08,105.03,70.62875933]
[1743982465897,29.8531,105.09,105.03,70.62875933]
[1743982466202,29.8531,105.09,105.0,70.7709209]
[1743982466203,70.62875933,105.06,104.99,18.79181043]
[1743982466402,19.07613357,105.08,105.02,70.62875933]
[1743982466568,29.8531,105.09,105.04,70.62875933]
[1743982466775,70.62875933,105.08,105.03,70.62875933]
[1743982466969,70.62875933,105.08,105.02,0.28432314]
[1743982467186,24.30262674,105.08,105.03,70.62875933]
[1743982468576,17.1289,105.09,105.04,70.62875933]
[1743982468889,70.62875933,105.08,105.03,70.62875933]
[1743982469091,70.62875933,105.07,105.02,70.62875933]
[1743982469295,70.62875933,105.05,104.99,18.79181043]
[1743982469480,70.62875933,105.06,105.01,70.62875933]
[1743982469694,70.62875933,105.07,105.02,70.62875933]
[1743982470000,70.62875933,105.07,104.99,18.933972]
[1743982470210,0.28432314,105.08,105.01,70.62875933]
[1743982470211,70.62875933,105.06,105.01,70.62875933]
[1743982470516,19.07613357,105.08,105.02,70.62875933]
[1743982470694,17.1289,105.09,105.05,70.62875933]
[1743982470889,9.5158,105.09,105.05,70.62875933]
[1743982471208,80.14455933,105.09,105.04,96.62875933]
[1743982471395,9.5158,105.09,105.05,70.62875933]
[1743982471595,20.39770537,105.13,105.07,70.62875933]
[1743982471798,91.0264647,105.13,105.08,70.62875933]
[1743982472610,9.91060537,105.13,105.09,70.62875933]
[1743982472992,70.62875933,105.12,105.05,0.28432314]
[1743982473341,9.91060537,105.13,105.1,70.62875933]
[1743982473508,9.91060537,105.13,105.12,70.62875933]
[1743982473509,0.39850537,105.13,105.12,70.62875933]
[1743982474106,0.39850537,105.13,105.11,70.62875933]
[1743982475235,70.62875933,105.12,105.07,70.62875933]
[1743982475386,0.39850537,105.13,105.1,70.62875933]
[1743982475928,0.39850537,105.13,105.11,70.62875933]
[1743982476401,0.39850537,105.13,105.09,70.62875933]
[1743982476804,0.39850537,105.13,105.12,70.62875933]
[1743982477238,0.39850537,105.13,105.11,70.62875933]
[1743982477629,0.39850537,105.13,105.12,70.62875933]
[1743982477945,0.39850537,105.13,105.12,96.62875933]
[1743982478518,0.39850537,105.13,105.12,101.27625932]
[1743982478845,0.39850537,105.13,105.12,120.35239289]
[1743982480117,0.39850537,105.13,105.12,190.98115222]
[1743982480337,0.03,105.18,105.13,19.07613357]
[1743982480538,0.03,105.18,105.15,70.62875933]
[1743982480718,70.65875933,105.18,105.13,26.0]
[1743982480920,70.65875933,105.18,105.12,4.64749999]
[1743982480921,0.03,105.18,105.14,96.62875933]
[1743982481262,0.03,105.18,105.15,70.62875933]
[1743982481433,0.03,105.18,105.14,73.05577146]
[1743982481948,47.08577146,105.18,105.14,26.0]
[1743982482149,0.03,105.18,105.14,73.05577146]
[1743982482346,0.03,105.18,105.14,26.0]
[1743982482545,47.08577146,105.18,105.12,4.64749999]
[1743982482849,56.56497146,105.17,105.12,47.05577146]
[1743982483154,9.5092,105.17,105.09,17.8333003]
[1743982483457,47.05577146,105.16,105.11,47.05577146]
[1743982484161,56.56497146,105.17,105.12,47.05577146]
[1743982484459,9.5092,105.17,105.12,47.05577146]
[1743982484624,56.56497146,105.17,105.12,47.05577146]
[1743982484948,9.5377,105.18,105.12,47.05577146]
[1743982485149,56.59347146,105.18,105.13,47.05577146]
[1743982485617,9.5377,105.18,105.13,47.05577146]
[1743982485817,47.05577146,105.15,105.11,26.0]
[1743982486037,56.59347146,105.18,105.13,47.05577146]
[1743982486038,9.5377,105.18,105.13,47.05577146]
[1743982486257,9.5377,105.18,105.11,26.0]
[1743982486258,9.5375,105.18,105.14,47.05577146]
[1743982486423,56.59327146,105.18,105.13,47.05577146]
[1743982486627,0.14216157,105.15,105.07,13.48]
[1743982486819,47.05577146,105.14,105.1,26.0]
[1743982487053,47.05577146,105.13,105.07,18.79181043]
[1743982487256,47.05577146,105.13,105.08,47.05577146]
[1743982487436,56.56697146,105.14,105.09,47.05577146]
[1743982487834,9.5102,105.15,105.07,18.79181043]
[1743982488140,47.05577146,105.13,105.08,47.05577146]
[1743982488373,47.05577146,105.11,105.06,344.25577146]
[1743982488655,47.05577146,105.12,105.06,344.25577146]
[1743982488854,56.56897146,105.12,105.07,47.05577146]
[1743982489434,47.05577146,105.12,105.07,47.05577146]
[1743982489660,68.88697146,105.13,105.08,47.05577146]
[1743982489830,47.05577146,105.12,105.07,47.05577146]
[1743982490236,21.8312,105.13,105.08,47.05577146]
[1743982490456,7.7444,105.14,105.09,47.05577146]
[1743982490762,12.1069,105.16,105.11,47.05577146]
[1743982490962,12.1069,105.16,105.12,47.05577146]
[1743982491126,12.1069,105.16,105.11,47.05577146]
[1743982491331,68.67217146,105.16,105.11,47.05577146]
[1743982491631,47.05577146,105.15,105.1,26.0]
[1743982491838,12.1069,105.16,105.11,47.05577146]
[1743982492070,7.6152,105.17,105.12,47.05577146]
[1743982492261,56.59327146,105.18,105.13,47.05577146]
[1743982492564,47.05577146,105.16,105.11,47.05577146]
[1743982493041,33.3062,105.18,105.1,39.48]
[1743982493237,47.05577146,105.16,105.11,47.05577146]
[1743982493459,0.03,105.18,105.14,47.05577146]
[1743982493640,47.05577146,105.17,105.12,47.05577146]
[1743982493845,0.03,105.18,105.12,47.05577146]
[1743982494045,47.05577146,105.16,105.11,47.05577146]
[1743982494267,47.05577146,105.17,105.12,47.05577146]
[1743982494473,0.03,105.18,105.13,47.05577146]
[1743982494649,47.05577146,105.17,105.12,47.05577146]
[1743982494847,0.03,105.18,105.12,47.05577146]
[1743982494848,47.08577146,105.18,105.12,47.05577146]
[1743982495050,47.05577146,105.17,105.12,47.05577146]
[1743982495283,47.05577146,105.17,105.1,70.66553357]
[1743982495572,0.03,105.18,105.14,47.05577146]
[1743982495874,0.03,105.18,105.15,47.05577146]
[1743982496161,0.03,105.18,105.16,47.05577146]
[1743982496363,0.03,105.18,105.15,73.05577146]
[1743982497263,47.08577146,105.18,105.14,26.0]
[1743982497768,47.05577146,105.17,105.14,26.0]
[1743982497967,47.08577146,105.18,105.13,73.05577146]
[1743982498163,0.03,105.18,105.14,73.05577146]
[1743982498364,0.03,105.18,105.17,47.05577146]
[1743982498572,0.03,105.18,105.15,73.05577146]
[1743982498867,0.03,105.18,105.16,47.05577146]
[1743982499063,0.03,105.18,105.15,73.05577146]
[1743982499249,0.03,105.18,105.14,73.05577146]
[1743982499570,47.08577146,105.18,105.13,47.05577146]
[1743982499739,0.03,105.18,105.13,47.05577146]
[1743982499944,0.03,105.18,105.14,47.05577146]
[1743982500748,47.08577146,105.18,105.13,73.05577146]
[1743982500946,47.05577146,105.17,105.1,322.4894]
[1743982501149,47.08577146,105.18,105.12,47.05577146]
[1743982501345,0.03,105.18,105.14,47.05577146]
[1743982501553,0.03,105.18,105.15,47.05577146]
[1743982502387,0.03,105.18,105.16,47.05577146]
[1743982502691,56.59337146,105.18,105.1,341.56553357]
[1743982502844,47.05577146,105.17,105.11,47.05577146]
[1743982503052,9.5091,105.17,105.13,47.05577146]
[1743982503259,9.5091,105.17,105.11,47.05577146]
[1743982503260,47.05577146,105.16,105.11,47.05577146]
[1743982503469,9.538,105.18,105.12,47.05577146]
[1743982503648,9.5378,105.18,105.13,73.05577146]
[1743982503960,56.59357146,105.18,105.13,73.05577146]
[1743982504155,47.08577146,105.18,105.13,73.05577146]
[1743982504376,0.03,105.18,105.13,73.05577146]
[1743982504559,47.08577146,105.18,105.13,73.05577146]
[1743982504756,9.5375,105.18,105.13,73.05577146]
[1743982504957,47.05577146,105.17,105.13,26.0]
[1743982505173,56.56507146,105.16,105.13,26.0]
[1743982505564,9.5093,105.16,105.13,26.0]
[1743982505873,56.56467146,105.17,105.13,26.0]
[1743982506080,56.56467146,105.17,105.12,47.05577146]
[1743982506280,56.56467146,105.17,105.1,322.4894]
[1743982506483,47.05577146,105.17,105.12,47.05577146]
[1743982506661,0.03,105.18,105.13,47.05577146]
[1743982506981,47.05577146,105.16,105.11,47.05577146]
[1743982507181,56.56587146,105.16,105.11,47.05577146]
[1743982507403,47.05577146,105.14,105.1,296.92]
[1743982507557,47.05577146,105.13,105.1,296.92]
[1743982507764,94.3245,105.18,105.12,47.05577146]
[1743982508066,13.1245,105.18,105.12,47.05577146]
[1743982508273,47.05577146,105.17,105.1,296.92]
[1743982508468,47.05577146,105.16,105.11,47.05577146]
[1743982508676,0.14216157,105.17,105.1,296.92]
[1743982508887,19.07613357,105.17,105.1,343.97577146]
[1743982509074,47.05577146,105.14,105.1,296.92]
[1743982509396,9.5105,105.15,105.11,47.05577146]
[1743982509564,47.05577146,105.16,105.11,47.05577146]
[1743982509772,9.5086,105.17,105.1,296.92]
[1743982509980,47.05577146,105.16,105.11,47.05577146]
[1743982510573,13.1245,105.18,105.13,47.05577146]
[1743982510786,47.05577146,105.16,105.1,296.92]
[1743982511077,47.05577146,105.16,105.11,47.05577146]
[1743982511275,47.05577146,105.15,105.1,296.92]
[1743982511601,47.05577146,105.16,105.11,47.05577146]
[1743982511801,22.6323,105.18,105.12,47.05577146]
[1743982511968,47.05577146,105.17,105.12,47.05577146]
[1743982512382,69.68797146,105.18,105.13,47.05577146]
[1743982512582,47.05577146,105.17,105.12,47.05577146]
[1743982513278,13.1245,105.18,105.12,47.05577146]
[1743982513566,60.18027146,105.18,105.13,47.05577146]
[1743982513762,13.1245,105.18,105.13,73.05577146]
[1743982513963,0.03,105.18,105.15,47.05577146]
[1743982514176,0.03,105.18,105.17,47.05577146]
[1743982514777,0.03,105.18,105.13,70.74243357]
[1743982514976,0.03,105.18,105.17,26.0]
[1743982515382,0.03,105.22,105.18,19.07613357]
[1743982515680,0.47612733,105.23,105.22,0.14216157]
[1743982515980,56.55147146,105.31,105.25,26.0]
[1743982516198,0.53317276,105.33,105.26,13.44]
[1743982516387,0.53317276,105.33,105.29,47.05577146]
[1743982516574,0.53317276,105.33,105.26,13.44]
[1743982516775,0.53317276,105.33,105.29,47.05577146]
[1743982516986,0.53317276,105.33,105.3,47.05577146]
[1743982517311,57.08304422,105.33,105.28,47.05577146]
[1743982517506,0.53317276,105.33,105.31,47.05577146]
[1743982517793,0.53317276,105.33,105.32,47.05577146]
[1743982517970,0.53317276,105.33,105.32,26.0]
[1743982518171,0.53317276,105.33,105.31,13.44]
[1743982518575,0.53317276,105.33,105.32,47.19793303]
[1743982518771,0.53317276,105.33,105.32,66.13190503]
[1743982519007,4.52375889,105.38,105.32,66.13190503]
[1743982519008,4.52375889,105.38,105.35,26.0]
[1743982519174,4.52375889,105.38,105.36,13.44]
[1743982519376,4.52375889,105.38,105.37,70.27344242]
[1743982519573,4.52375889,105.38,105.37,89.34957599]
[1743982519771,0.60951055,105.43,105.4,26.0]
[1743982519978,0.60951055,105.43,105.4,96.27344242]
[1743982520276,0.60951055,105.43,105.41,70.27344242]
[1743982520477,0.60951055,105.43,105.41,13.42]
[1743982520679,0.60951055,105.43,105.42,70.41560399]
[1743982520980,0.60951055,105.43,105.42,70.27344242]
[1743982521180,0.60951055,105.43,105.41,13.42]
[1743982521490,9.4795,105.49,105.42,85.12344364]
[1743982521679,9.4795,105.49,105.43,70.27344242]
[1743982522199,70.27344242,105.47,105.42,85.12344364]